Body Name,Body,Service Level,Expense Type,Expense Code,Narrative,Date,Transaction Number,Amount,Capital and Revenue,Supplier Name,Supplier ID
South Ribble Council,http://statistics.data.gov.uk/doc/local-authority/30UN,Property Services,Fixtures and Fittings,2611,Civic Centre please provide a 16 yard skip as per NAME REDACTED for the shared service office move.  total price of 275,10/06/2020,0000456844,275.00,Revenue,ABLE SKIP HIRE LTD,00042495
South Ribble Council,http://statistics.data.gov.uk/doc/local-authority/30UN,Healthy Communities,Sports Dev Expenses,4894,Cytech technical one - Theory and Practical - 475 Cytech Technical Two Assessment - 325 Total - 800,26/06/2020,0000457190,800.00,Revenue,Activate Learning,133134
South Ribble Council,http://statistics.data.gov.uk/doc/local-authority/30UN,Area 2 - Waste Transport/Eastern & Central Teams,Materials General,4040,1 EGR valve Gasket Kit 1 door lock 2 vaccum pumps AE14 AYG JFC14707,10/06/2020,0000456910,814.20,Revenue,AEBI SCHMIDT UK LTD,00085672
South Ribble Council,http://statistics.data.gov.uk/doc/local-authority/30UN,Area 2 - Waste Transport/Eastern & Central Teams,Materials General,4040,EGR VALVE - AE14AYF - JFC14672,10/06/2020,0000456911,341.26,Revenue,AEBI SCHMIDT UK LTD,00085672
South Ribble Council,http://statistics.data.gov.uk/doc/local-authority/30UN,Area 2 - Waste Transport/Eastern & Central Teams,Materials General,4040,2 X VACUME VALVES - AE14AYF- JFC14672,10/06/2020,0000456911,311.46,Revenue,AEBI SCHMIDT UK LTD,00085672
South Ribble Council,http://statistics.data.gov.uk/doc/local-authority/30UN,Area 2 - Waste Transport/Eastern & Central Teams,Materials General,4040,FREIGHT,10/06/2020,0000456911,15.00,Revenue,AEBI SCHMIDT UK LTD,00085672
South Ribble Council,http://statistics.data.gov.uk/doc/local-authority/30UN,Revenues Plus,Financial,4811,post office,10/06/2020,0000456826,665.06,Revenue,ALLPAY LTD,00122276
South Ribble Council,http://statistics.data.gov.uk/doc/local-authority/30UN,Revenues Plus,Financial,4811,paypoint,10/06/2020,0000456826,86.00,Revenue,ALLPAY LTD,00122276
South Ribble Council,http://statistics.data.gov.uk/doc/local-authority/30UN,Revenues Plus,Financial,4811,webconnect,10/06/2020,0000456826,46.00,Revenue,ALLPAY LTD,00122276
South Ribble Council,http://statistics.data.gov.uk/doc/local-authority/30UN,Property Services,Rep & Maint Premises,2020,2020 / 2021 annual metering charge for the civic centre,03/06/2020,0000456753,432.00,Revenue,AMEY Metering Ltd,131991
South Ribble Council,http://statistics.data.gov.uk/doc/local-authority/30UN,Information Services,Capital Expenditure,C234,"50 x Apple Smart - Keyboard and folio case - Apple Smart connector - English - for 11-inch iPad Pro (1st generation, 2nd generation)  @ 140.11 each",24/06/2020,0000457095,"7,005.50",Revenue,BANNER GROUP LTD,00081485
South Ribble Council,http://statistics.data.gov.uk/doc/local-authority/30UN,Environmental Health,Subs to Statutory Bodies,4720,ANNUAL CENTRE RECOGNITION FEE FROM 26 JUNE 2020,03/06/2020,0000456764,500.00,Revenue,BIIAB,132677
South Ribble Council,http://statistics.data.gov.uk/doc/local-authority/30UN,Property Services,Rep & Maint Premises,2020,"Annual contract 20/21 for business care plus cover at Kingsfold Community Centre, contract ref 2196542-1",03/07/2020,0000456940,581.00,Revenue,BRITISH GAS SERVICES (COMMERCIAL) LTD,00016214
South Ribble Council,http://statistics.data.gov.uk/doc/local-authority/30UN,Homelessness,Contractors Charges 5,5311,ADDRESS REDACTED- TA furniture,03/06/2020,0000456754,"1,360.00",Revenue,Calico Enterprise,132188
South Ribble Council,http://statistics.data.gov.uk/doc/local-authority/30UN,Homelessness,Contractors Charges 5,5311,non vat,03/06/2020,0000456754,280.00,Revenue,Calico Enterprise,132188
South Ribble Council,http://statistics.data.gov.uk/doc/local-authority/30UN,Homelessness,Contractors Charges 5,5311,ADDRESS REDACTED - furniture,05/06/2020,0000456760,405.00,Revenue,Calico Enterprise,132188
South Ribble Council,http://statistics.data.gov.uk/doc/local-authority/30UN,Homelessness,Contractors Charges 5,5311,non vat,05/06/2020,0000456760,130.00,Revenue,Calico Enterprise,132188
South Ribble Council,http://statistics.data.gov.uk/doc/local-authority/30UN,Homelessness,Contractors Charges 5,5311,ADDRESS REDACTED - TA furniture,05/06/2020,0000456761,405.00,Revenue,Calico Enterprise,132188
South Ribble Council,http://statistics.data.gov.uk/doc/local-authority/30UN,Homelessness,Contractors Charges 5,5311,non vat,05/06/2020,0000456761,130.00,Revenue,Calico Enterprise,132188
South Ribble Council,http://statistics.data.gov.uk/doc/local-authority/30UN,Planning,Agency Fees,1121,Remote Planning Validation Support,24/06/2020,0000457098,749.93,Revenue,CAPITA BUSINESS SERVICES LTD,00117948
South Ribble Council,http://statistics.data.gov.uk/doc/local-authority/30UN,Planning,Agency Fees,1121,Remote validation support for Development Management,24/06/2020,0000457103,749.93,Revenue,CAPITA PROPERTY AND INFRASTRUCTURE LTD,131347
South Ribble Council,http://statistics.data.gov.uk/doc/local-authority/30UN,Planning,Agency Fees,1121,Remote validation support for Development Management,26/06/2020,0000457169,"1,624.88",Revenue,CAPITA PROPERTY AND INFRASTRUCTURE LTD,131347
South Ribble Council,http://statistics.data.gov.uk/doc/local-authority/30UN,Shared Financial Services,Agency Fees,1121,50% recharge of Democratic Officer NAME REDACTED costs from February to March 2020,03/06/2020,0000456667,"3,636.84",Revenue,CHORLEY BOROUGH COUNCIL,00017352
South Ribble Council,http://statistics.data.gov.uk/doc/local-authority/30UN,Property Services,Rep & Maint Fixed Plant,2035,per NAME REDACTED force through,03/06/2020,0000456409,"2,997.37",Revenue,CHUBB LTD,00090625
South Ribble Council,http://statistics.data.gov.uk/doc/local-authority/30UN,Environmental Health,Operational Furniture & Equip,4010,Traceable recalibration of Trojan Noise Nuisance Recorder Quote 33984 - per NAME REDACTED,17/06/2020,0000456867,413.00,Revenue,CIRRUS RESEARCH PLC,131450
South Ribble Council,http://statistics.data.gov.uk/doc/local-authority/30UN,Development Enterprise & Comm Mgnt,Contributions,4730,Core funding for Citizens Advice Services for South Ribble 1/4/20  31/3/21 as set out in the service description supplied on 31st July 2018.,24/06/2020,0000457025,"20,000.00",Revenue,Citizens Advice Lancashire,00017349
South Ribble Council,http://statistics.data.gov.uk/doc/local-authority/30UN,Information Services,Peripherals,4248,"EDRMS - annual Licence, Support & Maintenance for period 01/07/20 - 30/06/21",03/07/2020,0000456924,"18,371.76",Revenue,CIVICA UK LTD,00102717
South Ribble Council,http://statistics.data.gov.uk/doc/local-authority/30UN,Information Services,Peripherals,4241,55 x USB-C to 3.5mm Headphone Jack Adaptor - MU7E2ZM/A @  7.50 each,05/06/2020,0000456821,397.50,Revenue,CPC Re: COMBINED PRECISION COMPONENTS PLC,00017954
South Ribble Council,http://statistics.data.gov.uk/doc/local-authority/30UN,Information Services,Peripherals,4241,5 x Lenovo Laptop 329.00 each,19/06/2020,0000457099,"1,645.00",Revenue,CPC Re: COMBINED PRECISION COMPONENTS PLC,00017954
South Ribble Council,http://statistics.data.gov.uk/doc/local-authority/30UN,Revenues Plus,Postage,4291,Postage April to Sept 2020,03/06/2020,0000456721,399.20,Revenue,CRITIQOM,131053
South Ribble Council,http://statistics.data.gov.uk/doc/local-authority/30UN,Revenues Plus,Postage,4291,Postage April to Sept 2020,05/06/2020,0000456807,319.42,Revenue,CRITIQOM,131053
South Ribble Council,http://statistics.data.gov.uk/doc/local-authority/30UN,Revenues Plus,Postage,4291,Postage April to Sept 2020,17/06/2020,0000456926,412.86,Revenue,CRITIQOM,131053
South Ribble Council,http://statistics.data.gov.uk/doc/local-authority/30UN,Revenues Plus,Postage,4291,Postage April to Sept 2020,19/06/2020,0000457035,428.79,Revenue,CRITIQOM,131053
South Ribble Council,http://statistics.data.gov.uk/doc/local-authority/30UN,Revenues Plus,Postage,4291,Postage April to Sept 2020,26/06/2020,0000457189,348.24,Revenue,CRITIQOM,131053
South Ribble Council,http://statistics.data.gov.uk/doc/local-authority/30UN,Area 2 - Waste Transport/Eastern & Central Teams,Materials General,4040,WATER PUMP - VO65KPZ - JFC14608,10/06/2020,0000456515,465.23,Revenue,DENNIS EAGLE LTD,00019774
South Ribble Council,http://statistics.data.gov.uk/doc/local-authority/30UN,Area 2 - Waste Transport/Eastern & Central Teams,Materials General,4040,GASKET - VO65KPZ - JFC14608,10/06/2020,0000456515,4.67,Revenue,DENNIS EAGLE LTD,00019774
South Ribble Council,http://statistics.data.gov.uk/doc/local-authority/30UN,Area 2 - Waste Transport/Eastern & Central Teams,Materials General,4040,SEAT BELT BUCKLET - VO65KPZ - JFC14608,10/06/2020,0000456515,67.91,Revenue,DENNIS EAGLE LTD,00019774
South Ribble Council,http://statistics.data.gov.uk/doc/local-authority/30UN,Area 2 - Waste Transport/Eastern & Central Teams,Materials General,4040,3 X REAR LIGHTS - VO65KPZ - JFC14608,10/06/2020,0000456515,223.73,Revenue,DENNIS EAGLE LTD,00019774
South Ribble Council,http://statistics.data.gov.uk/doc/local-authority/30UN,Area 2 - Waste Transport/Eastern & Central Teams,Materials General,4040,2x SERVICE KITS - VA19KOX - JFC14614,05/06/2020,0000456559,256.80,Revenue,DENNIS EAGLE LTD,00019774
South Ribble Council,http://statistics.data.gov.uk/doc/local-authority/30UN,Area 2 - Waste Transport/Eastern & Central Teams,Materials General,4040,Track Rod VU60 HLE JFC14680,05/06/2020,0000456687,406.12,Revenue,DENNIS EAGLE LTD,00019774
South Ribble Council,http://statistics.data.gov.uk/doc/local-authority/30UN,Area 2 - Waste Transport/Eastern & Central Teams,External Contractors Charges,4570,1 SPEC REPAIR VO65 KRF JFC14584,05/06/2020,0000456711,819.70,Revenue,DENNIS EAGLE LTD,00019774
South Ribble Council,http://statistics.data.gov.uk/doc/local-authority/30UN,Property Services,Rep & Maint Fixed Plant,2035,2020 / 2021 contract for fire alarm service at Moss Side Depot,17/06/2020,0000456946,300.00,Revenue,DES Electrical Services Ltd,131437
South Ribble Council,http://statistics.data.gov.uk/doc/local-authority/30UN,Property Services,Rep & Maint Fixed Plant,2035,"2020 / 2021 contract for fire alarm service at the Civic Centre, Leyland",17/06/2020,0000456950,400.00,Revenue,DES Electrical Services Ltd,131437
South Ribble Council,http://statistics.data.gov.uk/doc/local-authority/30UN,Revenues Plus,Professional Fees,4510,Hub Software,24/06/2020,0000457090,"3,000.00",Revenue,Destin Solutions Limited,132482
South Ribble Council,http://statistics.data.gov.uk/doc/local-authority/30UN,Property Services,Fixtures and Fittings,2611,Purchasing furniture for Shared Services Third Floor Civic Centre Quote Ref: Q20009-2,24/06/2020,0000456785,"17,190.83",Revenue,Diamond Business Interiors Ltd,133053
South Ribble Council,http://statistics.data.gov.uk/doc/local-authority/30UN,Property Services,Fixtures and Fittings,2611,"Please supply furniture, NAME REDACTED, AS12 x 17, CB1000  x 17, OC97FDA C1+ x 17, LKSO4D28EW4  x 6, per quotation - q20146 - 1",17/06/2020,0000456855,"1,712.46",Revenue,Diamond Business Interiors Ltd,133053
South Ribble Council,http://statistics.data.gov.uk/doc/local-authority/30UN,Area 2 - Waste Transport/Eastern & Central Teams,Materials General,4040,1 STOP LEVER & CONNECTING LEVER BLR69A2 JFC14670,17/06/2020,0000456992,4.27,Revenue,DICK LEIGH,00026534
South Ribble Council,http://statistics.data.gov.uk/doc/local-authority/30UN,Area 2 - Waste Transport/Eastern & Central Teams,Materials General,4040,1 POLE ASSEMBLY CSW87TR JFC14595,17/06/2020,0000456992,270.72,Revenue,DICK LEIGH,00026534
South Ribble Council,http://statistics.data.gov.uk/doc/local-authority/30UN,HR & Communications,Severance payments,1600,PROFESSIONAL SERVICES IN RELATION TO A SETTLEMENT AGREEMENT FOR NAME REDACTED,19/06/2020,0000456959,300.00,Revenue,Dominic Thompson & Co,133136
South Ribble Council,http://statistics.data.gov.uk/doc/local-authority/30UN,Property Services,Other Misc,4851,Please supply 50 floor stickers to Leyland market as agreed with the market manager,24/06/2020,0000457011,632.50,Revenue,DOUGLAS SIGNS,00103680
South Ribble Council,http://statistics.data.gov.uk/doc/local-authority/30UN,Area 2 - Waste Transport/Eastern & Central Teams,External Contractors Charges,4570,Yearly Jaltest CV Updates License 14.6.20 -13.6.21,17/06/2020,0000456956,720.00,Revenue,Eclipse Automotive Technology Ltd,132869
South Ribble Council,http://statistics.data.gov.uk/doc/local-authority/30UN,Area 2 - Waste Transport/Eastern & Central Teams,External Contractors Charges,4570,Jaltest Road Sweeper Updates Licence (001706373) 14.6.20 -13.6.21,17/06/2020,0000456956,180.00,Revenue,Eclipse Automotive Technology Ltd,132869
South Ribble Council,http://statistics.data.gov.uk/doc/local-authority/30UN,Area 2 - Waste Transport/Eastern & Central Teams,External Contractors Charges,4570,Eclipse Vehicle Diagnostic & IT Support 14.6.20 -13.6.21,17/06/2020,0000456956,295.00,Revenue,Eclipse Automotive Technology Ltd,132869
South Ribble Council,http://statistics.data.gov.uk/doc/local-authority/30UN,Information Services,Peripherals,4260,01 JUN 2020,10/06/2020,0000456856,"4,102.75",Revenue,EE Ltd,131653
South Ribble Council,http://statistics.data.gov.uk/doc/local-authority/30UN,Information Services,Publications,4142,Annual subscription to Local Government Chronicle 1 copy 2020/21,17/06/2020,0000456303,281.00,Revenue,Emap Publishing Ltd,132932
South Ribble Council,http://statistics.data.gov.uk/doc/local-authority/30UN,Shared Financial Services,Parish Precepts,4870,farington parish precept,17/06/2020,0000456885,"56,500.00",Revenue,FARINGTON PARISH COUNCIL,00031105
South Ribble Council,http://statistics.data.gov.uk/doc/local-authority/30UN,Area 2 - Waste Transport/Eastern & Central Teams,External Contractors Charges,4570,Residual Waste Collections May 2020,17/06/2020,0000456831,"45,660.96",Revenue,FCC Environment Services (UK) Ltd,131612
South Ribble Council,http://statistics.data.gov.uk/doc/local-authority/30UN,Area 2 - Waste Transport/Eastern & Central Teams,External Contractors Charges,4570,Dry Recycled Non Terraced Collections May 2020,17/06/2020,0000456831,"46,746.51",Revenue,FCC Environment Services (UK) Ltd,131612
South Ribble Council,http://statistics.data.gov.uk/doc/local-authority/30UN,Area 2 - Waste Transport/Eastern & Central Teams,External Contractors Charges,4570,Dry recyclable Terraced May 2020,17/06/2020,0000456831,"2,224.41",Revenue,FCC Environment Services (UK) Ltd,131612
South Ribble Council,http://statistics.data.gov.uk/doc/local-authority/30UN,Area 2 - Waste Transport/Eastern & Central Teams,External Contractors Charges,4570,Organic Waste non terraced May 2020,17/06/2020,0000456831,"32,371.11",Revenue,FCC Environment Services (UK) Ltd,131612
South Ribble Council,http://statistics.data.gov.uk/doc/local-authority/30UN,Area 2 - Waste Transport/Eastern & Central Teams,External Contractors Charges,4570,Schedule 2 properties May 2020,17/06/2020,0000456831,"1,860.35",Revenue,FCC Environment Services (UK) Ltd,131612
South Ribble Council,http://statistics.data.gov.uk/doc/local-authority/30UN,Area 2 - Waste Transport/Eastern & Central Teams,External Contractors Charges,4570,Commercial Waste May 2020,17/06/2020,0000456831,"7,249.95",Revenue,FCC Environment Services (UK) Ltd,131612
South Ribble Council,http://statistics.data.gov.uk/doc/local-authority/30UN,Area 2 - Waste Transport/Eastern & Central Teams,External Contractors Charges,4570,Bulky Waste Collections May 2020,17/06/2020,0000456831,"1,005.57",Revenue,FCC Environment Services (UK) Ltd,131612
South Ribble Council,http://statistics.data.gov.uk/doc/local-authority/30UN,Area 2 - Waste Transport/Eastern & Central Teams,External Contractors Charges,4570,WEEE Collections May 2020,17/06/2020,0000456831,377.48,Revenue,FCC Environment Services (UK) Ltd,131612
South Ribble Council,http://statistics.data.gov.uk/doc/local-authority/30UN,Area 2 - Waste Transport/Eastern & Central Teams,External Contractors Charges,4570,Clinical Waste Collections May 2020,17/06/2020,0000456831,643.04,Revenue,FCC Environment Services (UK) Ltd,131612
South Ribble Council,http://statistics.data.gov.uk/doc/local-authority/30UN,Area 2 - Waste Transport/Eastern & Central Teams,External Contractors Charges,4570,Replacement Bins May 2020,17/06/2020,0000456831,"5,000.00",Revenue,FCC Environment Services (UK) Ltd,131612
South Ribble Council,http://statistics.data.gov.uk/doc/local-authority/30UN,Area 2 - Waste Transport/Eastern & Central Teams,External Contractors Charges,4570,Additional Properties May 2020,17/06/2020,0000456831,"2,941.70",Revenue,FCC Environment Services (UK) Ltd,131612
South Ribble Council,http://statistics.data.gov.uk/doc/local-authority/30UN,Area 2 - Waste Transport/Eastern & Central Teams,Balance Sheet,0030,retention refuse,17/06/2020,0000456831,"-2,986.95",Revenue,FCC Environment Services (UK) Ltd,131612
South Ribble Council,http://statistics.data.gov.uk/doc/local-authority/30UN,Area 2 - Waste Transport/Eastern & Central Teams,Balance Sheet,0030,retention recycling,17/06/2020,0000456831,"-4,067.10",Revenue,FCC Environment Services (UK) Ltd,131612
South Ribble Council,http://statistics.data.gov.uk/doc/local-authority/30UN,Area 2 - Waste Transport/Eastern & Central Teams,External Contractors Charges,4570,Annual Fleet Check Licence Fee from 1.6.20 - 1.6.21,05/06/2020,0000456828,"2,400.00",Revenue,FLEETCHECK LTD,130457
South Ribble Council,http://statistics.data.gov.uk/doc/local-authority/30UN,Healthy Communities,Sports Dev Expenses,4894,"1 x Diploma in Weight Loss Management, 1 x Behaviour Change Module, 1 x Level 4 award in Nutrition",03/06/2020,0000456790,"2,372.05",Revenue,Future Fit Training Ltd,133122
South Ribble Council,http://statistics.data.gov.uk/doc/local-authority/30UN,Healthy Communities,Sports Dev Expenses,4894,FEE,03/06/2020,0000456790,35.00,Revenue,Future Fit Training Ltd,133122
South Ribble Council,http://statistics.data.gov.uk/doc/local-authority/30UN,Environmental Health,Consultancy Fees,4541,The Independent Chair and Author Costs for DHR 2019/20 - per NAME REDACTED.,17/06/2020,0000457010,"7,500.00",Revenue,Geo McManus,133078
South Ribble Council,http://statistics.data.gov.uk/doc/local-authority/30UN,Area 2 - Waste Transport/Eastern & Central Teams,Materials General,4040,Torro 48`` Blade BIN1076,10/06/2020,0000456406,148.39,Revenue,GIBSONS GARDEN MACHINERY LTD,00059051
South Ribble Council,http://statistics.data.gov.uk/doc/local-authority/30UN,Area 2 - Waste Transport/Eastern & Central Teams,Materials General,4040,Torro 36`` Blade BIN1077,10/06/2020,0000456406,85.32,Revenue,GIBSONS GARDEN MACHINERY LTD,00059051
South Ribble Council,http://statistics.data.gov.uk/doc/local-authority/30UN,Area 2 - Waste Transport/Eastern & Central Teams,Materials General,4040,Torro 48`` Drive Belt BIN1078,10/06/2020,0000456406,65.57,Revenue,GIBSONS GARDEN MACHINERY LTD,00059051
South Ribble Council,http://statistics.data.gov.uk/doc/local-authority/30UN,Area 2 - Waste Transport/Eastern & Central Teams,Materials General,4040,Ignition Switch PMR20A3 JFC14580,10/06/2020,0000456406,20.16,Revenue,GIBSONS GARDEN MACHINERY LTD,00059051
South Ribble Council,http://statistics.data.gov.uk/doc/local-authority/30UN,Legal,Legal,4821,PROFESSIONAL SERVICES WITH REGARD TO WAINHOMES (NW) LTD V SOS AND SRBC - S288 CHALLENGE,24/06/2020,0000457116,"15,250.00",Revenue,Giles Cannock,133125
South Ribble Council,http://statistics.data.gov.uk/doc/local-authority/30UN,Housing,Contributions,4730,Gas servicing for winter warmth scheme 2019/2020 8223.88,05/06/2020,0000456819,270.00,Revenue,GOS Heating Ltd,131387
South Ribble Council,http://statistics.data.gov.uk/doc/local-authority/30UN,Shared Financial Services,Professional Fees,4512,South Ribble Borough Council Main Audit Fee 2019-20,24/06/2020,0000456904,"8,455.25",Revenue,Grant Thornton UK LLP,130718
South Ribble Council,http://statistics.data.gov.uk/doc/local-authority/30UN,Shared Assurance Services,Agency Fees,1121,Internal Auditor - NAME REDACTED for week ending period 8/11/19 - 27/03/19 (excluding Christmas closedown) ,26/06/2020,0000457071,652.53,Revenue,Hays Specialist Recruitment Ltd,132288
South Ribble Council,http://statistics.data.gov.uk/doc/local-authority/30UN,Shared Assurance Services,Agency Fees,1121,Internal Auditor - NAME REDACTED for week ending period 8/11/19 - 27/03/19 (excluding Christmas closedown) ,26/06/2020,0000457074,"1,283.51",Revenue,Hays Specialist Recruitment Ltd,132288
South Ribble Council,http://statistics.data.gov.uk/doc/local-authority/30UN,Shared Assurance Services,Agency Fees,1121,Internal Auditor - NAME REDACTED for week ending period 8/11/19 - 27/03/19 (excluding Christmas closedown) ,26/06/2020,0000457075,"1,173.31",Revenue,Hays Specialist Recruitment Ltd,132288
South Ribble Council,http://statistics.data.gov.uk/doc/local-authority/30UN,Information Services,Publications,4142,Subscription renewal MJ Magazine - 2 copies -  2020/21,24/06/2020,0000457152,280.00,Revenue,HEMMING GROUP LTD,00023867
South Ribble Council,http://statistics.data.gov.uk/doc/local-authority/30UN,Area 2 - Waste Transport/Eastern & Central Teams,External Contractors Charges,4570,Callout to supply and map ECU c/w key PJ62 UCM JFC14692,17/06/2020,0000457020,"1,000.00",Revenue,Higginson & son Limited,132498
South Ribble Council,http://statistics.data.gov.uk/doc/local-authority/30UN,Property Services,Rep & Maint Premises,2020,Works to conservatory building at Worden Park following vandalism reported on out of hours call duty officer and FM officer on 7th March 2020,05/06/2020,0000456752,474.60,Revenue,HIGHER WALTON GLASS LTD (INCORP STEVE TI,00023391
South Ribble Council,http://statistics.data.gov.uk/doc/local-authority/30UN,Regeneration,Contributions,4730,"2 Litre Semi Skim(400), Butter - Derby Hill(260), Dewlay Creamy Cheese(60), Dewlay Tasty Cheese 200g(60), Dewlay Mild Cheese 200g(60)",03/06/2020,0000456718,"1,433.60",Revenue,Holme Farm Doorstep Ltd,133079
South Ribble Council,http://statistics.data.gov.uk/doc/local-authority/30UN,Shared Financial Services,Parish Precepts,4870,hutton paris precept,17/06/2020,0000456886,"22,500.00",Revenue,HUTTON PARISH COUNCIL,00023566
South Ribble Council,http://statistics.data.gov.uk/doc/local-authority/30UN,HR & Communications,Subs to Statutory Bodies,4720,LG INFORM PLUS MEMBERSHIP RENEWAL FOR SOUTH RIBBLE BOROUGHJ COUNCIL 1 APRIL 2020 - 31 MARCH 2021,17/06/2020,0000456841,"1,025.00",Revenue,IDEA IMPROVEMENT & DEV AGENCY for LOCAL GOV,00012111
South Ribble Council,http://statistics.data.gov.uk/doc/local-authority/30UN,Democratic Services,Training Expense-Course Fees,1406,"Effective Scrutiny Course, Cllr NAME REDACTED on 10th - 11th October 2020",24/06/2020,0000457076,250.00,Revenue,IDEA IMPROVEMENT & DEV AGENCY for LOCAL GOV,00012111
South Ribble Council,http://statistics.data.gov.uk/doc/local-authority/30UN,Information Services,Capital Expenditure,C234,"Installation of new Modules to current IDOX solution as per Contract Signed May 2020 - 146,650.00",03/06/2020,0000456724,"73,325.00",Revenue,IDOX PLC,00104485
South Ribble Council,http://statistics.data.gov.uk/doc/local-authority/30UN,Information Services,Peripherals,4248,Oracle Value Based Pricing Licence Annual Maintenance 07/07/20 - 31/03/21,17/06/2020,0000457009,356.44,Revenue,IDOX PLC,00104485
South Ribble Council,http://statistics.data.gov.uk/doc/local-authority/30UN,Neighbourhood Admin & Support,Materials General,4040,QC10 - QUICK SET CONCRETE,17/06/2020,0000457005,"1,228.64",Revenue,INSTARMAC GROUP PLC,00024905
South Ribble Council,http://statistics.data.gov.uk/doc/local-authority/30UN,Property Services,Rep & Maint Premises,2020,Supply/installation of replacement 50l unvented water heater with unvented kit at Civic Centre the conference centre toilets (cleaners cupboard).,26/06/2020,0000457173,575.00,Revenue,J Whittle plumbing & heating,132695
South Ribble Council,http://statistics.data.gov.uk/doc/local-authority/30UN,Property Services,Capital Expenditure,C230,Retention fees for Civic Centre refurbishment,24/06/2020,0000457068,"1,897.51",Revenue,John Wade Groundworks Ltd t/a Wade Group,131568
South Ribble Council,http://statistics.data.gov.uk/doc/local-authority/30UN,Planning,Advertising,4841,Press Notices in the Lancashire Evening Post for planning applications April 2020 to March 2021,10/06/2020,0000456697,810.00,Revenue,JPI Media - JOHNSTON PUBLISHING (NORTH WEST),00011345
South Ribble Council,http://statistics.data.gov.uk/doc/local-authority/30UN,HR & Communications,Advertising,4841,"Lancashire Evening Post: Public Notices, 1, 08/06/2020. www.Preston Today: Public Notices, 1, 08/06/2020",26/06/2020,0000456936,891.00,Revenue,JPI Media - JOHNSTON PUBLISHING (NORTH WEST),00011345
South Ribble Council,http://statistics.data.gov.uk/doc/local-authority/30UN,Planning,Advertising,4841,Press Notices in the Lancashire Evening Post for planning applications April 2020 to March 2021,26/06/2020,0000457065,729.00,Revenue,JPI Media - JOHNSTON PUBLISHING (NORTH WEST),00011345
South Ribble Council,http://statistics.data.gov.uk/doc/local-authority/30UN,Planning,Advertising,4841,Press Notices in the Lancashire Evening Post for planning applications April 2020 to March 2021,24/06/2020,0000457066,729.00,Revenue,JPI Media - JOHNSTON PUBLISHING (NORTH WEST),00011345
South Ribble Council,http://statistics.data.gov.uk/doc/local-authority/30UN,Regeneration,Other Misc,4851,"Provision of 3 meals for 20 people @7pp  to Purpleroomz, Bamber Bridge: Friday 3/4, Saturday 4/4, Sunday 5/4",03/06/2020,0000456731,420.00,Revenue,La Corte,131833
South Ribble Council,http://statistics.data.gov.uk/doc/local-authority/30UN,Revenues Plus,Balance Sheet,0001,,03/06/2020,0000456763,795.00,Revenue,Labour Party North West,133128
South Ribble Council,http://statistics.data.gov.uk/doc/local-authority/30UN,Shared Financial Services,Pensions Increase Act Payments,1704,Pension Strain for NAME REDACTED - invoice 6600004113 already received,24/06/2020,0000456422,"74,098.52",Revenue,LANCASHIRE COUNTY COUNCIL PENSION FUND,130639
South Ribble Council,http://statistics.data.gov.uk/doc/local-authority/30UN,Area 2 - Waste Transport/Eastern & Central Teams,Waste Disposal Charges,5112,January 2020  - Incineration of Clinical Waste.,03/06/2020,0000456589,413.68,Revenue,LANCASHIRE TEACHING FT,00120715
South Ribble Council,http://statistics.data.gov.uk/doc/local-authority/30UN,Area 2 - Waste Transport/Eastern & Central Teams,Waste Disposal Charges,5112,March 2020  - Incineration of Clinical Waste.,03/06/2020,0000456590,762.30,Revenue,LANCASHIRE TEACHING FT,00120715
South Ribble Council,http://statistics.data.gov.uk/doc/local-authority/30UN,Area 2 - Waste Transport/Eastern & Central Teams,Waste Disposal Charges,5112,April 2020 - Incineration of Clinical Waste,10/06/2020,0000456901,487.30,Revenue,LANCASHIRE TEACHING FT,00120715
South Ribble Council,http://statistics.data.gov.uk/doc/local-authority/30UN,Area 2 - Waste Transport/Eastern & Central Teams,Waste Disposal Charges,5112,February 2020  - Incineration of Clinical Waste.,19/06/2020,0000457015,404.77,Revenue,LANCASHIRE TEACHING FT,00120715
South Ribble Council,http://statistics.data.gov.uk/doc/local-authority/30UN,Area 2 - Waste Transport/Eastern & Central Teams,Waste Disposal Charges,5412,"Quarter 4 Disposal Fee, Landfill Tax & 5% Admin Fee",17/06/2020,0000456808,"54,762.06",Revenue,LANCS COUNTY COUNCIL,00041645
South Ribble Council,http://statistics.data.gov.uk/doc/local-authority/30UN,Shared Financial Services,Contributions,4730,"CIL - Land To The North Of Altcar Lane, Leyland (Ref CIL43)",10/06/2020,0000456840,"382,523.26",Revenue,LANCS COUNTY COUNCIL,00041645
South Ribble Council,http://statistics.data.gov.uk/doc/local-authority/30UN,Shared Financial Services,Contributions,4730,"CIL - Land adjacent at Shawbrook Road, Leyland (Ref CIL47)",10/06/2020,0000456840,"693,973.88",Revenue,LANCS COUNTY COUNCIL,00041645
South Ribble Council,http://statistics.data.gov.uk/doc/local-authority/30UN,Legal,Other Local Authorities,4530,LAND CHARGES - MAY 2020,03/07/2020,0000456958,356.50,Revenue,LANCS COUNTY COUNCIL,00041645
South Ribble Council,http://statistics.data.gov.uk/doc/local-authority/30UN,Area 3 - Parks/Leyland East West,External Contractors Charges,4570,"Replacement of lamp column to rear of Barncroft, Moss Side Leyland",17/06/2020,0000456985,750.00,Revenue,LANCS COUNTY COUNCIL,00041645
South Ribble Council,http://statistics.data.gov.uk/doc/local-authority/30UN,Housing,Cap Grant- Improve Grants,C570,DFG WORKS TO SUPPLY AND INSTALL A GENERIT TOILET AT ADDRESS REDACTED �If electrics as part of a retro fit allow 165.00p ,19/06/2020,0000457064,"3,635.75",Revenue,LANCS COUNTY COUNCIL,00041645
South Ribble Council,http://statistics.data.gov.uk/doc/local-authority/30UN,Area 2 - Waste Transport/Eastern & Central Teams,Materials General,4040,Service Pack YA19 NKC JFC14648,05/06/2020,0000456798,386.18,Revenue,LANCS DAF,00026424
South Ribble Council,http://statistics.data.gov.uk/doc/local-authority/30UN,Area 2 - Waste Transport/Eastern & Central Teams,Materials General,4040,Menu Button YA19 NKC JFC14648,05/06/2020,0000456798,69.69,Revenue,LANCS DAF,00026424
South Ribble Council,http://statistics.data.gov.uk/doc/local-authority/30UN,Area 2 - Waste Transport/Eastern & Central Teams,Materials General,4040,SERVICE KIT - YA19NKD - JFC14742,17/06/2020,0000457003,287.69,Revenue,LANCS DAF,00026424
South Ribble Council,http://statistics.data.gov.uk/doc/local-authority/30UN,Housing,Capital Expenditure,C230,"TENDER SPEC TO PLANNING APPROVAL REQ AND BUILDING CONTROL , FOR CONVERSION OF PEARSON HOUSE STATION ROAD",03/06/2020,0000456782,"1,155.00",Revenue,LEE MCGREGOR LMC ARCHITECTURE LTD,132806
South Ribble Council,http://statistics.data.gov.uk/doc/local-authority/30UN,Shared Financial Services,Parish Precepts,4870,little hoole parish precept,17/06/2020,0000456887,"22,500.00",Revenue,LITTLE HOOLE PARISH COUNCIL,00026709
South Ribble Council,http://statistics.data.gov.uk/doc/local-authority/30UN,Shared Financial Services,Parish Precepts,4870,longton parish precept,24/06/2020,0000456888,"116,000.00",Revenue,LONGTON PARISH COUNCIL,00026673
South Ribble Council,http://statistics.data.gov.uk/doc/local-authority/30UN,Planning,Consultancy Fees,4541,Support with the development of a Community Wealth Building Action Plan for South Ribble as per email of 9th June 2020,26/06/2020,0000457174,"2,000.00",Revenue,Matthew Baqueriza-Jackson LTD,133140
South Ribble Council,http://statistics.data.gov.uk/doc/local-authority/30UN,Legal,Legal,4821,"PROFESSIONAL ADVICE ON THE ENFORCEABILITY OF A S106 AGREEMENT, LAND AT GRASMERE AVE, FARINGTON WOOD LEYLAND",26/06/2020,0000457126,"1,000.00",Revenue,Matthew Henderson,133139
South Ribble Council,http://statistics.data.gov.uk/doc/local-authority/30UN,Property Services,Rep & Maint Premises,2020,cancelled out by credit 1035,10/06/2020,0000452546,"4,800.00",Revenue,Mick Bamber,132873
South Ribble Council,http://statistics.data.gov.uk/doc/local-authority/30UN,Homelessness,Contributions,4730,"Bond, RIA and holding fee for NAME REDACTED",26/06/2020,0000457175,"1,300.00",Revenue,NAME REDACTED,133135
South Ribble Council,http://statistics.data.gov.uk/doc/local-authority/30UN,Legal,Legal,4821,"PROF. FEES FOR WORK REGARDING JUDICIAL REVIEW IN RESPECT OF LAND TO THE SOUTH OF CHAINHOUSE LANE, WHITESTAKE",24/06/2020,0000457114,"7,925.00",Revenue,Mr Alan Evans,131944
South Ribble Council,http://statistics.data.gov.uk/doc/local-authority/30UN,Environmental Health,Contractors Charges 5,5310,The Funeral for the late NAME REDACTED - per NAME REDACTED.,03/06/2020,0000456692,"1,295.00",Revenue,NEAL BUCKLEY,130840
South Ribble Council,http://statistics.data.gov.uk/doc/local-authority/30UN,Revenues Plus,Balance Sheet,0001,,26/06/2020,0000457194,388.82,Revenue,North West Storage Solutions Ltd,133144
South Ribble Council,http://statistics.data.gov.uk/doc/local-authority/30UN,Neighbourhood Admin & Support,Materials General,4040,CHANNEL BRUSH - 2.8 mm POLY & 3.3mm WIRE 5 row 700/1000mm - 78399/2,05/06/2020,0000456359,563.42,Revenue,NORTHERN MUNICIPAL SPARES LTD,00117061
South Ribble Council,http://statistics.data.gov.uk/doc/local-authority/30UN,Neighbourhood Admin & Support,Materials General,4040,4 ROW CHANNEL BRUSH - C/W 4 NUTS/BOLTS - 835/66,05/06/2020,0000456359,258.43,Revenue,NORTHERN MUNICIPAL SPARES LTD,00117061
South Ribble Council,http://statistics.data.gov.uk/doc/local-authority/30UN,Neighbourhood Admin & Support,Materials General,4040,DELIVERY CHARGE,05/06/2020,0000456359,39.00,Revenue,NORTHERN MUNICIPAL SPARES LTD,00117061
South Ribble Council,http://statistics.data.gov.uk/doc/local-authority/30UN,Area 1 - Penwortham Western Parishes,Professional Fees,4514,Deployment of officers May 2020,17/06/2020,0000456976,"1,375.65",Revenue,NSL LTD,00116868
South Ribble Council,http://statistics.data.gov.uk/doc/local-authority/30UN,Area 1 - Penwortham Western Parishes,Other Misc,4855,Cash collection and ringo charges- May 2020,17/06/2020,0000456976,206.05,Revenue,NSL LTD,00116868
South Ribble Council,http://statistics.data.gov.uk/doc/local-authority/30UN,Area 1 - Penwortham Western Parishes,Other Misc,4855,Ringo convenience charge - May 2020,17/06/2020,0000456976,5.44,Revenue,NSL LTD,00116868
South Ribble Council,http://statistics.data.gov.uk/doc/local-authority/30UN,Information Services,Peripherals,4247,100 Emergency NetConnect Licences (3 months) 27/06/20 - 26/09/20,17/06/2020,0000457023,"1,500.00",Revenue,NVIRON LTD,00028781
South Ribble Council,http://statistics.data.gov.uk/doc/local-authority/30UN,Regeneration,Other Misc,4851,Food and Toiletries as part of the Coronavirus Action Plan,24/06/2020,0000457135,"2,809.79",Revenue,Oncore Trading,133077
South Ribble Council,http://statistics.data.gov.uk/doc/local-authority/30UN,Regeneration,Other Misc,4851,vat item,24/06/2020,0000457135,30.00,Revenue,Oncore Trading,133077
South Ribble Council,http://statistics.data.gov.uk/doc/local-authority/30UN,Shared Financial Services,Parish Precepts,4870,penwortham precept,24/06/2020,0000456890,"170,000.00",Revenue,PENWORTHAM TOWN COUNCIL,00031257
South Ribble Council,http://statistics.data.gov.uk/doc/local-authority/30UN,Planning,Legal,4821,Appeal costs - Land between 2 and 3 and adjacent to Melwood Townley Lane Penwortham,03/06/2020,0000456574,"4,950.00",Revenue,PETER E GILKES & COMPANY,130748
South Ribble Council,http://statistics.data.gov.uk/doc/local-authority/30UN,Area 2 - Waste Transport/Eastern & Central Teams,External Contractors Charges,4570,TR219,03/07/2020,0000456896,584.80,Revenue,PRESTON TYRE SPECIALISTS,00109516
South Ribble Council,http://statistics.data.gov.uk/doc/local-authority/30UN,Homelessness,Contractors Charges 5,5313,Void loss 6/1/20 - 5/4/20 PHG properties,26/06/2020,0000457178,"1,033.15",Revenue,PROGRESS HOUSING GRP ref:DNSOU001,00030135
South Ribble Council,http://statistics.data.gov.uk/doc/local-authority/30UN,Development Enterprise & Comm Mgnt,Other Misc,485K,businessinsouthribble.com Dev/Support: 10 hours Web & email hosting for the current year (starting on 1st April 2020) SSL cert renew 19/5/20,03/06/2020,0000456623,"1,129.99",Revenue,PROTEAN SYSTEMS LIMITED,130003
South Ribble Council,http://statistics.data.gov.uk/doc/local-authority/30UN,Area 2 - Waste Transport/Eastern & Central Teams,External Contractors Charges,4570,Contract for the rental of 59 TCSV Terminals (Vehicle Tracking) 1.4.20 - 30.6.20,17/06/2020,0000457000,"2,035.50",Revenue,Quartix,131610
South Ribble Council,http://statistics.data.gov.uk/doc/local-authority/30UN,Property Services,Capital Expenditure,C230,"Please undertake works for the site investigation and remediation strategy Bent lane, Leyland as per your reference 01pLA108748",10/06/2020,0000456857,"3,500.00",Revenue,REC Ltd,133059
South Ribble Council,http://statistics.data.gov.uk/doc/local-authority/30UN,Homelessness,Contractors Charges 5,5311,"OSM payment July, August, September 2020",19/06/2020,0000457061,"5,624.90",Revenue,REDDY & CO,00108177
South Ribble Council,http://statistics.data.gov.uk/doc/local-authority/30UN,Area 2 - Waste Transport/Eastern & Central Teams,Contract Hire & Lease Costs,3212,Hire of 70/30 RCV HK18 EKX On Hire 29.4.20 @ 238.00 Delivery 75.00,17/06/2020,0000456291,476.00,Revenue,RIVERSIDE TRUCK RENTAL LTD,132867
South Ribble Council,http://statistics.data.gov.uk/doc/local-authority/30UN,Area 2 - Waste Transport/Eastern & Central Teams,Contract Hire & Lease Costs,3212,Alleged damage to hire vehicle HK18 EKK 70% Rave Rubber Split,17/06/2020,0000456683,84.00,Revenue,RIVERSIDE TRUCK RENTAL LTD,132867
South Ribble Council,http://statistics.data.gov.uk/doc/local-authority/30UN,Area 2 - Waste Transport/Eastern & Central Teams,Contract Hire & Lease Costs,3212,30% rave rubber torn & NSM rear lamp bracket bent,17/06/2020,0000456683,96.00,Revenue,RIVERSIDE TRUCK RENTAL LTD,132867
South Ribble Council,http://statistics.data.gov.uk/doc/local-authority/30UN,Area 2 - Waste Transport/Eastern & Central Teams,Contract Hire & Lease Costs,3212,OS shark fin bracket gauged and & bent,17/06/2020,0000456683,225.00,Revenue,RIVERSIDE TRUCK RENTAL LTD,132867
South Ribble Council,http://statistics.data.gov.uk/doc/local-authority/30UN,Area 2 - Waste Transport/Eastern & Central Teams,Contract Hire & Lease Costs,3212,OSR wheel trim damaged,17/06/2020,0000456683,69.00,Revenue,RIVERSIDE TRUCK RENTAL LTD,132867
South Ribble Council,http://statistics.data.gov.uk/doc/local-authority/30UN,Revenues Plus,Parish Precepts,4870,salmesbury & cuerdale parish precepts,17/06/2020,0000456922,"8,000.00",Revenue,SAMLESBURY & CUERDALE PARISH COUNCIL,00031118
South Ribble Council,http://statistics.data.gov.uk/doc/local-authority/30UN,Property Services,Professional Fees,4510,Property Portfolio Consultancy 26th March - 26th May 2020,03/06/2020,0000456691,665.31,Revenue,Sanderson Weatherall LLP,132534
South Ribble Council,http://statistics.data.gov.uk/doc/local-authority/30UN,Property Services,Professional Fees,4510,non vat,03/06/2020,0000456691,15.00,Revenue,Sanderson Weatherall LLP,132534
South Ribble Council,http://statistics.data.gov.uk/doc/local-authority/30UN,Property Services,Balance Sheet,0030,"Professional services & disbursements in relation to Test Track, Leyland.",03/06/2020,0000456729,"2,052.47",Revenue,Sanderson Weatherall LLP,132534
South Ribble Council,http://statistics.data.gov.uk/doc/local-authority/30UN,Scrutiny,Subs to Statutory Bodies,4720,NORTH WEST LEGAL CONSORTIUM MEMBERSHIP SUBSCRIPTION FOR 2020-2021,26/06/2020,0000457186,500.00,Revenue,SEFTON M B COUNCIL,00117058
South Ribble Council,http://statistics.data.gov.uk/doc/local-authority/30UN,Development Enterprise & Comm Mgnt,Consultancy Fees,4536,R & M for 2020/2021,03/06/2020,0000456451,"29,603.00",Revenue,SERCO LEISURE (OP) LTD,00094906
South Ribble Council,http://statistics.data.gov.uk/doc/local-authority/30UN,Information Services,Professional Fees,4520,Shredding of Confidential Waste 2020/21,19/06/2020,0000457084,269.77,Revenue,SHRED-IT LTD,00109134
South Ribble Council,http://statistics.data.gov.uk/doc/local-authority/30UN,Information Services,Professional Fees,4520,Shredding of Confidential Waste 2020/21,19/06/2020,0000457085,407.41,Revenue,SHRED-IT LTD,00109134
South Ribble Council,http://statistics.data.gov.uk/doc/local-authority/30UN,Neighbourhood Admin & Support,Clothing- Uniforms & Laundry,4410,C19-DBPWST403 COVERALL ST40 DISPOSABLE PW LARGE,05/06/2020,0000456787,158.40,Revenue,SMART IMAGE WORKWEAR,00031503
South Ribble Council,http://statistics.data.gov.uk/doc/local-authority/30UN,Neighbourhood Admin & Support,Clothing- Uniforms & Laundry,4410,C19-DBPWST304COVERALL ST30 & TYPE 5/6 DISPOSABLE XL,05/06/2020,0000456787,158.40,Revenue,SMART IMAGE WORKWEAR,00031503
South Ribble Council,http://statistics.data.gov.uk/doc/local-authority/30UN,Homelessness,Contractors Charges 5,5311,SRBC placements 5 rooms x 7 nights 3rd - 9th May,03/06/2020,0000456725,"1,750.00",Revenue,SMITHY LODGE GUEST HOUSE,130562
South Ribble Council,http://statistics.data.gov.uk/doc/local-authority/30UN,Homelessness,Contractors Charges 5,5311,SRBC placements Smithy Lodge 17th to 23rd May 2020 5 rooms x 7 nights,03/06/2020,0000456768,"1,750.00",Revenue,SMITHY LODGE GUEST HOUSE,130562
South Ribble Council,http://statistics.data.gov.uk/doc/local-authority/30UN,Homelessness,Contractors Charges 5,5311,SRBC placements at Smithy Lodge 10th-16th May 2020 5 rooms x 7 nights,03/06/2020,0000456769,"1,750.00",Revenue,SMITHY LODGE GUEST HOUSE,130562
South Ribble Council,http://statistics.data.gov.uk/doc/local-authority/30UN,Homelessness,Contractors Charges 5,5311,smithy lodge SRBC placements 10th to the 18th May 5 rooms x 7 nights,03/06/2020,0000456770,"1,750.00",Revenue,SMITHY LODGE GUEST HOUSE,130562
South Ribble Council,http://statistics.data.gov.uk/doc/local-authority/30UN,Homelessness,Contractors Charges 5,5311,Smithy Lodge 24th - 30th May 5 rooms x 7 nights,03/07/2020,0000456875,"1,750.00",Revenue,SMITHY LODGE GUEST HOUSE,130562
South Ribble Council,http://statistics.data.gov.uk/doc/local-authority/30UN,Homelessness,Contractors Charges 5,5311,"4 SRBC placements, 31/5/2020 to 06/06/2020 4 x 50 = 200 7 x 200 = 1400",19/06/2020,0000457027,"1,400.00",Revenue,SMITHY LODGE GUEST HOUSE,130562
South Ribble Council,http://statistics.data.gov.uk/doc/local-authority/30UN,Development Enterprise & Comm Mgnt,Consultancy Fees,4532,Leisure Services Fee 2020/2021,03/06/2020,0000456619,"49,560.18",Revenue,SOUTH RIBBLE COMMUNITY LEISURE LTD,00094210
South Ribble Council,http://statistics.data.gov.uk/doc/local-authority/30UN,Shared Financial Services,Balance Sheet,0030,monthly deductions payroll,03/06/2020,0000456715,"1,486.62",Revenue,SOUTH RIBBLE LABOUR PARTY LOCAL GOVERNM,00120663
South Ribble Council,http://statistics.data.gov.uk/doc/local-authority/30UN,Healthy Communities,Other Misc,4851,donation to saffa from proceeds raised by clay poppy sales from somme memorial,03/07/2020,0000456822,310.00,Revenue,SSAFA Lancashire,133129
South Ribble Council,http://statistics.data.gov.uk/doc/local-authority/30UN,Shared Financial Services,Balance Sheet,0030,monthly ded from payroll,03/06/2020,0000456714,434.00,Revenue,ST CATHERINES HOSPICE PROMOTIONS LTD,00057749
South Ribble Council,http://statistics.data.gov.uk/doc/local-authority/30UN,Neighbourhood Admin & Support,Vehicle Running Costs,3132,16000 Litres Diesel @ 84.67ppl into the feeder tank at Unit 81 Bison Place Moss Side - key for cabinet available from the main office ,10/06/2020,0000456837,"13,547.20",Revenue,Standard Fuel Oils LtdMain,131556
South Ribble Council,http://statistics.data.gov.uk/doc/local-authority/30UN,Neighbourhood Admin & Support,Vehicle Running Costs,3134,2500 litres Gas Oil @ 38.75ppl into Tank 2,17/06/2020,0000456993,"1,002.00",Revenue,Standard Fuel Oils LtdMain,131556
South Ribble Council,http://statistics.data.gov.uk/doc/local-authority/30UN,Neighbourhood Admin & Support,Vehicle Running Costs,3132,16000 litres Diesel @ 85.51ppl into the feeder tank at Unit 81 Bison Place - Key for cabinet available from main office on TELEPHONE REDACTED,17/06/2020,0000456997,"13,772.24",Revenue,Standard Fuel Oils LtdMain,131556
South Ribble Council,http://statistics.data.gov.uk/doc/local-authority/30UN,Legal,Legal,4821,PROFESSIONAL SERVICES WITH REGARD TO  THE ISSUE OF WHEN A C3 USE BECOMES A C2 USE,19/06/2020,0000457057,450.00,Revenue,STEPHANIE HALL,132966
South Ribble Council,http://statistics.data.gov.uk/doc/local-authority/30UN,Development Enterprise & Comm Mgnt,Other Misc,485K,South Ribble Apprentice Factory materials 2m x 3m roller banner � with updated Apprentice Factory design 2m x 3m roller banner cost 286.00,24/06/2020,0000457109,285.00,Revenue,STONE CREATE LTD,130896
South Ribble Council,http://statistics.data.gov.uk/doc/local-authority/30UN,Housing,Cap Grant- Improve Grants,C570,DFG WORK FOR BEDROOM AND BATHROOM ADAPTATION AS PER PLANS PROVIDED BY CUSTOMERS ARCHITECT / OT REFERRAL. ,10/06/2020,0000456895,"10,000.00",Revenue,TAYLOR NICOL BRICKWORK AND JOINERY LTD,133003
South Ribble Council,http://statistics.data.gov.uk/doc/local-authority/30UN,Housing,Cap Grant- Improve Grants,C570,DFG WORK FOR BEDROOM AND BATHROOM ADAPTATION AS PER PLANS PROVIDED BY CUSTOMERS ARCHITECT / OT REFERRAL. ,17/06/2020,0000457026,"10,000.00",Revenue,TAYLOR NICOL BRICKWORK AND JOINERY LTD,133003
South Ribble Council,http://statistics.data.gov.uk/doc/local-authority/30UN,Information Services,Peripherals,4246,"Endpoint Manager & Migration, as per quote ref: TALSRBCQ008",03/06/2020,0000456690,"1,800.00",Revenue,TechAlign,132535
South Ribble Council,http://statistics.data.gov.uk/doc/local-authority/30UN,Information Services,Peripherals,4246,"3 days consultancy to allow for the completion of the Teams expansion activity, as per quote TALSRBCQ009",03/06/2020,0000456728,675.00,Revenue,TechAlign,132535
South Ribble Council,http://statistics.data.gov.uk/doc/local-authority/30UN,Information Services,Peripherals,4243,"Public Admin Licence, 22 Professional Employees for period 01/06/20 - 31/05/20",10/06/2020,0000456866,506.00,Revenue,The Copyright Licensing Agency Ltd,132241
South Ribble Council,http://statistics.data.gov.uk/doc/local-authority/30UN,Regeneration,Other Misc,4851,Co-ordination of Living Room Live,26/06/2020,0000457134,500.00,Revenue,The Creative Network,130566
South Ribble Council,http://statistics.data.gov.uk/doc/local-authority/30UN,HR & Communications,Peripherals,4247,"Annual Support 24x7 SLA, 48 RMACs @ 4,800.00 and Cisco 24x7 Support @ 2429.36 - Period of cover: 01/04/2020 - 31/03/2021",24/06/2020,0000457082,"7,229.36",Revenue,The Networking People (TNP) Ltd,132331
South Ribble Council,http://statistics.data.gov.uk/doc/local-authority/30UN,Information Services,Publications,4142,schofields R52,10/06/2020,0000456853,132.50,Revenue,THOMSON REUTERS,00034979
South Ribble Council,http://statistics.data.gov.uk/doc/local-authority/30UN,Information Services,Publications,4142,non vat,10/06/2020,0000456853,132.50,Revenue,THOMSON REUTERS,00034979
South Ribble Council,http://statistics.data.gov.uk/doc/local-authority/30UN,Area 2 - Waste Transport/Eastern & Central Teams,Materials General,4040,Delivery of 2 vehicles from London to Leyland @ 290.00 per vehicle,05/06/2020,0000456726,580.00,Revenue,Tipmaster Ltd,132980
South Ribble Council,http://statistics.data.gov.uk/doc/local-authority/30UN,Information Services,Peripherals,4247,"Structured Cabling for virtual meetings, as per quote TC 2891/20 Rev A",10/06/2020,0000456852,640.00,Revenue,TIS Networks,132417
South Ribble Council,http://statistics.data.gov.uk/doc/local-authority/30UN,Property Services,Energy Costs,2303,1/5/20 to 31/5/20,03/07/2020,0000456879,"3,019.79",Revenue,Total Gas & power Ltd,132995
South Ribble Council,http://statistics.data.gov.uk/doc/local-authority/30UN,Property Services,Energy Costs,2307,CCL,03/07/2020,0000456879,162.41,Revenue,Total Gas & power Ltd,132995
South Ribble Council,http://statistics.data.gov.uk/doc/local-authority/30UN,Property Services,Energy Costs,2303,1/5/20 to 31/5/20,03/07/2020,0000456881,806.73,Revenue,Total Gas & power Ltd,132995
South Ribble Council,http://statistics.data.gov.uk/doc/local-authority/30UN,Property Services,Energy Costs,2307,CCL,03/07/2020,0000456881,36.48,Revenue,Total Gas & power Ltd,132995
South Ribble Council,http://statistics.data.gov.uk/doc/local-authority/30UN,Property Services,Energy Costs,2303,1/5/20 to 31/5/20,03/07/2020,0000456883,"1,992.62",Revenue,Total Gas & power Ltd,132995
South Ribble Council,http://statistics.data.gov.uk/doc/local-authority/30UN,Property Services,Energy Costs,2307,CCL,03/07/2020,0000456883,111.06,Revenue,Total Gas & power Ltd,132995
South Ribble Council,http://statistics.data.gov.uk/doc/local-authority/30UN,Housing,Cap Expend Other,C750,Remaining Winter Warmth scheme funding to supply and install UPVC double glazing as per tender specification for 2019/20 cost 12517.52,24/06/2020,0000457112,770.83,Revenue,TRADE WINDOWS & CONSERVATORIES,00119823
South Ribble Council,http://statistics.data.gov.uk/doc/local-authority/30UN,Neighbourhood Admin & Support,Materials General,4040,HAND WIPES ANTI-BACTERIAL- HEAVY DUTY - BMDB-665877,05/06/2020,0000456829,892.80,Revenue,United Industrial Supplies Ltd,132689
South Ribble Council,http://statistics.data.gov.uk/doc/local-authority/30UN,Property Services,Operational Furniture & Equip,4012,2019 / 2020 annual contract for the monthly rental of hot drinks machines at the civic centre including environmental charge.,05/06/2020,0000452665,538.31,Revenue,VENDING ENTERPRISES,00101501
South Ribble Council,http://statistics.data.gov.uk/doc/local-authority/30UN,Property Services,Operational Furniture & Equip,4012,2020 / 2021 annual contract for the monthly rental of hot drinks machines at the civic centre including environmental charge.,03/06/2020,0000456767,372.89,Revenue,VENDING ENTERPRISES,00101501
South Ribble Council,http://statistics.data.gov.uk/doc/local-authority/30UN,Property Services,Rep & Maint Premises,2020,"Annual Contract 2020/2021 for the sanitization of  water coolers x  7 machines at Civic Centre West Paddock Leyland, PR25 1DH",03/06/2020,0000456767,130.00,Revenue,VENDING ENTERPRISES,00101501
South Ribble Council,http://statistics.data.gov.uk/doc/local-authority/30UN,Property Services,Agency Fees,1121,Surveyor consultancy for the period 28 March 2020 - 30 June 2020.,03/06/2020,0000456695,"1,939.91",Revenue,Vivid Resourcing,132999
South Ribble Council,http://statistics.data.gov.uk/doc/local-authority/30UN,Property Services,Agency Fees,1121,Surveyor consultancy for the period 28 March 2020 - 30 June 2020.,10/06/2020,0000456838,"1,886.50",Revenue,Vivid Resourcing,132999
South Ribble Council,http://statistics.data.gov.uk/doc/local-authority/30UN,Property Services,Agency Fees,1121,Surveyor consultancy for the period 28 March 2020 - 30 June 2020.,17/06/2020,0000456961,"2,037.42",Revenue,Vivid Resourcing,132999
South Ribble Council,http://statistics.data.gov.uk/doc/local-authority/30UN,Property Services,Agency Fees,1121,Surveyor consultancy for the period 28 March 2020 - 30 June 2020.,24/06/2020,0000457054,"2,025.17",Revenue,Vivid Resourcing,132999
South Ribble Council,http://statistics.data.gov.uk/doc/local-authority/30UN,Information Services,Peripherals,4247,01 June 2020,05/06/2020,0000456802,"2,404.20",Revenue,VODAFONE RE:CABLE & WIRELESS UK,130810
South Ribble Council,http://statistics.data.gov.uk/doc/local-authority/30UN,Property Services,Water Charges,2511,1/4/20 to 20/5/20,03/06/2020,0000456745,"3,457.61",Revenue,WATER PLUS,00029845
South Ribble Council,http://statistics.data.gov.uk/doc/local-authority/30UN,Planning,Professional Fees,4510,This is a new commission for Central and West Lancs Rail Study,17/06/2020,0000456927,"2,000.00",Revenue,WSP UK Ltd,132833
South Ribble Council,http://statistics.data.gov.uk/doc/local-authority/30UN,Shared Assurance Services,Employee Related Insurance,1800,Zurich Municipal - SRBC increase of Officials Indemnity limit from 1m - 5m 1st April 2020 - 31st December 2020,03/06/2020,0000456520,"1,455.13",Revenue,Zurich Municipal Insurance plc,132190
